Workbook

Sheet Rate Design
C2: Rev @ Existing | D2: Misc Rev | E2: Rev. Status Quo | F2: Total Rev Status Quo | G2: Rev Req | H2: R/E | J2: 1st Est | L2: Surplus/ Shortfall | M2: After 1st Est | O2: Surplus/ Shortfall | P2: 2nd Est | X2: Range | AC2: 2024 (No Change)
B3: CA 'O1' Row Reference: | C3: 18 | D3: 19 | E3: 23 | F3: 25 | G3: 40 | H3: 47 | J3: Adj. % | K3: Adj. RevReq | M3: Adj. % | N3: Adj. RevReq | P3: Adj. % | Q3: Adj. RevReq | S3: Share % | T3: RevReq - Misc | U3: Share % | X3: Min | Y3: Max | AA3: Avg. Rate Increase | AC3: RevReq - Misc | AD3: With Misc. | AE3: R/E | AF3: 2024 Impact
B4: Residential | C4: 14373803.88 | D4: 1606237.995 | E4: 16024850.78 | F4: =D4+E4 -> 17631088.77 | G4: 17410755.46 | H4: =F4/G4 -> 1.012655011 | J4: =IF(H4>Y4,Y4,IF(H4<X4,X4,H4)) -> 1.012655011 | K4: =G4*J4 -> 17631088.77 | M4: =IF((IF(L$12>0,IF(J4=K$13,L$13,J4),IF(J4=K$14,L$14,J4))*G4-K4)>L10,(K4+$L$12)/G4,IF(L$12>0,IF(J4=K$13,L$13,J4),IF(J4=K$14,L$14,J4))) -> 1.012655011 | N4: =G4*M4 -> 17631088.77 | P4: =IF(ROUND($O$12,0)=0,M4,IF(O$12>0,IF(M4=N$13,O$13,M4),IF(M4=N$14,O$14,M4))) -> 1.012655011 | Q4: =G4*P4 -> 17631088.77 | R4: =Q4/G4 -> 1.012655011 | S4: =Q4/$Q$12 -> 0.7007686563 | T4: =Q4-D4 -> 16024850.78 | U4: =T4/$T$12 -> 0.6985796596 | X4: 0.85 | Y4: 1.15 | AA4: =T4/C4-1 -> 0.1148649941 | AC4: =Q4-D4 -> 16024850.78 | AD4: =AC4+D4 -> 17631088.77 | AE4: =AD4/G4 -> 1.012655011 | AF4: =AC4/T4-1 -> 0
B5: GS <50 | C5: 2399831.892 | D5: 234573.3144 | E5: 2675488.568 | F5: 2910061.882 | G5: 2988198.584 | H5: 0.9738515699 | J5: 0.9738515699 | K5: 2910061.882 | M5: =IF((IF(L$12>0,IF(J5=K$13,L$13,J5),IF(J5=K$14,L$14,J5))*G5-K5)>L11,(K5+$L$12)/G5,IF(L$12>0,IF(J5=K$13,L$13,J5),IF(J5=K$14,L$14,J5))) -> 0.9738515699 | N5: 2910061.882 | P5: 0.9738515699 | Q5: =G5*P5 -> 2910061.882 | R5: 0.9738515699 | S5: 0.1156638811 | T5: 2675488.568 | U5: 0.1166339655 | X5: 0.8 | Y5: 1.2 | AA5: 0.1148649941 | AC5: =Q5-D5 -> 2675488.568 | AD5: 2910061.882 | AE5: 0.9738515699 | AF5: 0
B6: GS 50 to 999 kW | C6: 2376296.213 | D6: 235716.7377 | E6: 2649249.464 | F6: 2884966.202 | G6: 3114134.348 | H6: 0.9264103211 | J6: 0.9264103211 | K6: 2884966.202 | M6: =J6 -> 0.9264103211 | N6: 2884966.202 | P6: 0.9264103211 | Q6: =G6*P6 -> 2884966.202 | R6: 0.9264103211 | S6: 0.1146664233 | T6: 2649249.464 | U6: 0.1154901106 | X6: 0.8 | Y6: 1.2 | AA6: 0.1148649941 | AC6: =Q6-D6 -> 2649249.464 | AD6: 2884966.202 | AE6: 0.9264103211 | AF6: 0
B7: GS 1,000 to 4,999 kW | C7: 555080.9762 | D7: 46002.33196 | E7: 618840.3492 | F7: 664842.6812 | G7: 564486.7909 | H7: 1.177782531 | J7: 1.177782531 | K7: 664842.6812 | M7: =IF((IF(L$12>0,IF(J7=K$13,L$13,J7),IF(J7=K$14,L$14,J7))*G7-K7)>L13,(K7+$L$12)/G7,IF(L$12>0,IF(J7=K$13,L$13,J7),IF(J7=K$14,L$14,J7))) -> 1.176017827 | N7: 663846.529 | P7: 1.176017827 | Q7: =G7*P7 -> 663846.529 | R7: 1.176017827 | S7: 0.02638537223 | T7: 617844.197 | U7: 0.02693400362 | X7: 0.8 | Y7: 1.2 | AA7: 0.1130703872 | AC7: =Q7-D7-Q15 -> 617844.197 | AD7: 663846.529 | AE7: 1.176017827 | AF7: 0
B8: Large Use >5MW | C8: 535442.9616 | D8: 58046.30029 | E8: 596946.6142 | F8: 654992.9145 | G8: 675063.9454 | H8: 0.9702679561 | J8: 0.9702679561 | K8: 654992.9145 | M8: =IF((IF(L$12>0,IF(J8=K$13,L$13,J8),IF(J8=K$14,L$14,J8))*G8-K8)>L14,(K8+$L$12)/G8,IF(L$12>0,IF(J8=K$13,L$13,J8),IF(J8=K$14,L$14,J8))) -> 0.9702679561 | N8: 654992.9145 | P8: 0.9702679561 | Q8: 654992.9145 | R8: 0.9702679561 | S8: 0.02603347476 | T8: 596946.6142 | U8: 0.02602300441 | X8: 0.85 | Y8: 1.15 | AA8: 0.1148649941 | AC8: =Q8-D8 -> 596946.6142 | AD8: 654992.9145 | AE8: 0.9702679561 | AF8: 0
B9: Street Light | C9: 260279.0009 | D9: 29507.23994 | E9: 290175.9468 | F9: 319683.1868 | G9: 302290.6288 | H9: 1.057535882 | J9: 1.057535882 | K9: 319683.1868 | M9: 1.057535882 | N9: 319683.1868 | P9: 1.057535882 | Q9: =G9*P9 -> 319683.1868 | R9: 1.057535882 | S9: 0.01270618962 | T9: 290175.9468 | U9: 0.01264979106 | X9: 0.8 | Y9: 1.2 | AA9: 0.1148649941 | AC9: =Q9-D9 -> 290175.9468 | AD9: 319683.1868 | AE9: 1.057535882 | AF9: 0
B10: Sentinel | C10: 31731.55367 | D10: 5287.811349 | E10: 35376.3984 | F10: 40664.20974 | G10: 52075.45241 | H10: 0.7808709836 | J10: 0.8 | K10: 41660.36193 | M10: =IF((IF(L$12>0,IF(J10=K$13,L$13,J10),IF(J10=K$14,L$14,J10))*G10-K10)>L16,(K10+$L$12)/G10,IF(L$12>0,IF(J10=K$13,L$13,J10),IF(J10=K$14,L$14,J10))) -> 0.8 | N10: 41660.36193 | P10: 0.8 | Q10: =G10*P10 -> 41660.36193 | R10: 0.8 | S10: 0.001655840783 | T10: 36372.55058 | U10: 0.001585607526 | X10: 0.8 | Y10: 1.2 | AA10: 0.1462581051 | AC10: =N10-D10 -> 36372.55058 | AD10: 41660.36193 | AE10: 0.8 | AF10: 0
B11: Unmetered Scattered Load | C11: 43288.46038 | D11: 5081.728188 | E11: 48260.78912 | F11: 53342.51731 | G11: 52637.15316 | H11: 1.0134005 | J11: 1.0134005 | K11: 53342.51731 | M11: =IF((IF(L$12>0,IF(J11=K$13,L$13,J11),IF(J11=K$14,L$14,J11))*G11-K11)>L17,(K11+$L$12)/G11,IF(L$12>0,IF(J11=K$13,L$13,J11),IF(J11=K$14,L$14,J11))) -> 1.0134005 | N11: 53342.51731 | P11: 1.0134005 | Q11: =G11*P11 -> 53342.51731 | R11: 1.0134005 | S11: 0.002120161985 | T11: 48260.78912 | U11: 0.002103857696 | X11: 0.8 | Y11: 1.2 | AA11: 0.1148649941 | AC11: =Q11-D11 -> 48260.78912 | AD11: 53342.51731 | AE11: 1.0134005 | AF11: 0
B12: Total | C12: =SUM(C4:C11) -> 20575754.94 | D12: =SUM(D4:D11) -> 2220453.458 | E12: =SUM(E4:E11) -> 22939188.91 | F12: =SUM(F4:F11) -> 25159642.37 | G12: =SUM(G4:G11) -> 25159642.37 | H12: 1 | K12: =SUM(K4:K11) -> 25160638.52 | L12: =G12-K12 -> -996.1521837 | N12: =SUM(N4:N11) -> 25159642.37 | O12: =G12-N12 -> 0 | Q12: =SUM(Q4:Q11) -> 25159642.37 | R12: =G12-Q12 -> 0 | S12: =SUM(S4:S11) -> 1 | T12: =SUM(T4:T11) -> 22939188.91 | U12: 1 | AC12: =SUM(AC4:AC11) -> 22939188.91
J13: Min | K13: =MIN(J4:J11) -> 0.8 | L13: =LARGE(J4:J11,COUNT(J4:J11)-1) -> 0.9264103211 | M13: Min | N13: =MIN(M4:M11) -> 0.8 | O13: 0.8 | P13: Min | Q13: =MIN(P4:P11) -> 0.8
J14: Max | K14: =MAX(J4:J11) -> 1.177782531 | L14: 1.2 | M14: Max | N14: =MAX(M4:M11) -> 1.176017827 | O14: 1.2 | P14: Max | Q14: =MAX(P4:P11) -> 1.176017827
C16: Status Quo Rates | L16: Proposed Rates (1st Est) | S16: Adjusted Fixed/Var. and Rates | AA16: RRWF Calc. | AC16: Check
C17: LF Customers | D17: LF Load | E17: Fixed | F17: Var Rate | G17: Fix Rev | H17: Var Rev | I17: Total Rev | J17: Fixed % | K17: Var % | L17: Fixed | M17: Variable | N17: TOA | O17: 1st Est. Fixed | P17: 1st Est. Var. | Q17: Maximum | S17: Fixed Rev. w/ Max | T17: Var. Rev. w/ Max Fixed | U17: Fixed % | V17: Var % | X17: Fixed Rate | Y17: Var Rate | AA17: Fixed | AB17: Var | AC17: Fixed | AD17: Var
B18: Residential | C18: 40087.58333 | D18: 354110615.3 | E18: 29.88 | G18: =C18*E18*12 -> 14373803.88 | H18: =+D18*F18-N18 -> 0 | I18: =G18+H18 -> 14373803.88 | J18: =G18/($I18) -> 1 | K18: =H18/$I18 -> 0 | L18: =J18*T4 -> 16024850.78 | M18: =K18*T4 -> 0 | O18: =L18/C18/12 -> 33.31216602 | P18: =M18/D18 -> 0 | Q18: 29.88 | S18: =IF(R18="Over",Q18*12*C18,L18) -> 16024850.78 | U18: =(X18*C18*12)/((X18*C18*12)+T18-N18) -> 1 | X18: =ROUND(S18/C18/12,2) -> 33.31 | AA18: 33.31 | AB18: 0 | AC18: =X18-AA18 -> 0 | AD18: 0
B19: GS <50 | C19: 2989.9091 | D19: 89710182.5 | E19: 18.38 | F19: 0.0194 | G19: 659454.3512 | H19: 1740377.541 | I19: 2399831.892 | J19: 0.2747918941 | K19: 0.7252081059 | L19: 735202.5714 | M19: =K19*T5 -> 1940285.997 | O19: 20.49121859 | P19: 0.02162838089 | Q19: 42.44091118 | R19: =IF(O19>Q19,"Over","") ->  | S19: 735202.5714 | T19: =T5-X19*C19*12+N19 -> 1940329.718 | U19: 0.2747755525 | V19: =T19/((X19*C19*12)+T19) -> 0.7252244475 | X19: 20.49 | Y19: =ROUND(T19/D19,4) -> 0.0216 | AA19: 20.49 | AB19: 0.0216 | AC19: 0 | AD19: 0
B20: GS 50 to 999 kW | C20: 343.8014652 | D20: 614051.2309 | E20: 86.74 | F20: 3.3568 | G20: 357856.0691 | H20: 2018440.144 | I20: 2376296.213 | J20: 0.1505940493 | K20: 0.8494059507 | L20: 398961.2044 | M20: =K20*T6 -> 2250288.26 | N20: 42807.02756 | O20: 96.70338959 | P20: 3.664658821 | Q20: 86.74 | R20: Over | S20: 357856.0691 | T20: 2334200.422 | U20: 0.1350782831 | V20: 0.8670696287 | X20: 86.74 | Y20: 3.8013 | AA20: 86.74 | AB20: 3.8013 | AC20: 0 | AD20: 0
B21: GS 1,000 to 4,999 kW | C21: 12 | D21: 244528.1616 | E21: 682.42 | F21: 2.3534 | G21: 98268.48 | H21: 456812.4962 | I21: 555080.9762 | J21: 0.1770344945 | K21: 0.8229655055 | L21: 109379.7351 | M21: =K21*T7 -> 508464.462 | N21: 118660.0793 | O21: 759.5814936 | P21: 2.079369749 | Q21: 682.42 | R21: Over | S21: 98268.48 | T21: 638235.7964 | U21: =(X21*C21*12)/((X21*C21*12)+T21-N21) -> 0.1590505834 | V21: =T21/((X21*C21*12)+T21) -> 0.8665744611 | X21: 682.42 | Y21: 2.6101 | AA21: 682.42 | AB21: 2.6101 | AC21: 0 | AD21: 0
B22: Large Use >5MW | C22: 3 | D22: 268059.2348 | E22: 2725.12 | F22: 1.6315 | G22: 98104.32 | H22: 437338.6416 | I22: 535442.9616 | J22: 0.1832208602 | K22: 0.8167791398 | L22: 109373.0721 | M22: =K22*T8+N22 -> 487573.5421 | O22: 3038.140893 | P22: 1.818902238 | Q22: 2725.12 | R22: Over | S22: 98104.32 | T22: 498842.2942 | U22: 0.1643435404 | V22: 0.8356564596 | X22: 2725.12 | Y22: 1.8609 | AA22: 2725.12 | AB22: 1.8609 | AC22: 0 | AD22: 0
B23: Street Light | C23: 2919.411592 | D23: 14179.06371 | E23: 2.678 | F23: 11.7399 | G23: 93818.21093 | H23: 166460.79 | I23: 260279.0009 | J23: 0.3604524783 | K23: 0.6395475217 | L23: 104594.6392 | M23: =K23*T9+N23 -> 185581.3077 | O23: 2.985608454 | P23: 13.08840354 | Q23: 2.678 | R23: Over | S23: 93818.21093 | T23: 196287.67 | U23: 0.3235563727 | V23: 0.6764436273 | X23: 2.68 | Y23: 13.8435 | AA23: 2.68 | AB23: 13.8435 | AC23: 0 | AD23: 0
B24: Sentinel | C24: 231.1911033 | D24: 377.8447545 | E24: 5.63 | F24: 42.6426 | G24: 15619.27094 | H24: 16112.28273 | I24: 31731.55367 | J24: 0.4922315214 | K24: 0.5077684786 | L24: 17903.71591 | M24: =K24*T10+N24 -> 18468.83467 | O24: 6.453433131 | P24: 48.87942587 | Q24: 20.497659 | S24: 17903.71591 | T24: 18478.35918 | U24: 0.4919696615 | V24: 0.5080303385 | X24: 6.45 | Y24: 48.9046 | AA24: 6.45 | AB24: 48.9046 | AC24: 0 | AD24: 0
B25: Unmetered Scattered Load | C25: 222.8647539 | D25: 1067791.261 | E25: 8.76 | F25: 0.0186 | G25: 23427.54293 | H25: 19860.91745 | I25: 43288.46038 | J25: 0.5411960306 | K25: 0.4588039694 | L25: 26118.54751 | M25: =K25*T11+N25 -> 22142.24161 | O25: 9.766217349 | P25: 0.02073648889 | Q25: 16.35842604 | S25: 26118.54751 | T25: 22132.12538 | U25: 0.5414056467 | V25: 0.4585943533 | X25: 9.77 | Y25: 0.0207 | AA25: 9.77 | AB25: 0.0207 | AC25: 0 | AD25: 0
C26: =SUM(C18:C25) -> 46809.76135 | D26: =SUM(D18:D25) -> 446029784.6 | G26: =SUM(G18:G25) -> 15720352.13 | H26: =SUM(H18:H25) -> 4855402.813 | I26: =SUM(I18:I25) -> 20575754.94 | J26: =G26/$I26 -> 0.7640231026 | K26: 0.2359768974
C28: Current Charges | E28: Proposed Charges | G28: Dx Bill Impact | J28: Variable with TOA | L28: Variable Change | S28: Weighted Var. Rate Change
C29: Fixed Charge | D29: Variable Charge | E29: Fixed Charge | F29: Variable Charge | G29: Fixed Charge | H29: Variable Charge | J29: Current | K29: Proposed | P29: Volumes | Q29: Share | R29: Rate Change
B30: =B18 -> Residential | C30: =E18 -> 29.88 | D30: 0 | E30: =X18 -> 33.31 | F30: 0 | G30: =E30/C30-1 -> 0.1147925033 | N30: GS 50-999 | O30: With TOA | P30: =N20/0.6 -> 71345.04593 | Q30: =P30/D20 -> 0.1161874488 | R30: =L32 -> 0.1612376669 | S30: =Q30*R30 -> 0.01873379316
B31: GS <50 | C31: 18.38 | D31: 0.0194 | E31: 20.49 | F31: 0.0216 | G31: 0.1147986942 | H31: =F31/D31-1 -> 0.1134020619 | O31: Without TOA | P31: =D20-P30 -> 542706.185 | Q31: =P31/D20 -> 0.8838125512 | R31: =H32 -> 0.1324177788 | S31: =Q31*R31 -> 0.1170324949
B32: GS 50 to 999 kW | C32: 86.74 | D32: 3.3568 | E32: 86.74 | F32: 3.8013 | G32: 0 | H32: 0.1324177788 | J32: =D32-0.6 -> 2.7568 | K32: =F32-0.6 -> 3.2013 | L32: =K32/J32-1 -> 0.1612376669 | S32: =S30+S31 -> 0.1357662881
B33: GS 1,000 to 4,999 kW | C33: 682.42 | D33: 2.3534 | E33: 682.42 | F33: 2.6101 | G33: 0 | H33: 0.1090762301 | J33: =D33-0.6 -> 1.7534 | K33: =F33-0.6 -> 2.0101 | L33: =K33/J33-1 -> 0.1464012775
B34: Large Use >5MW | C34: 2725.12 | D34: 1.6315 | E34: 2725.12 | F34: 1.8609 | G34: 0 | H34: 0.1406068036 | N34: GS 1,000-4,999 | O34: With TOA | P34: =N21/0.6 -> 197766.7989 | Q34: =P34/D21 -> 0.8087690089 | R34: =L33 -> 0.1464012775 | S34: =Q34*R34 -> 0.1184048161
B35: Street Light | C35: 2.678 | D35: 11.7399 | E35: 2.68 | F35: 13.8435 | G35: 0.0007468259895 | H35: 0.1791838091 | O35: Without TOA | P35: =D21-P34 -> 46761.3627 | Q35: =P35/D21 -> 0.1912309911 | R35: =H33 -> 0.1090762301 | S35: =Q35*R35 -> 0.0208587556
B36: Sentinel | C36: 5.63 | D36: 42.6426 | E36: 6.45 | F36: 48.9046 | G36: 0.1456483126 | H36: 0.1468484567 | S36: =S34+S35 -> 0.1392635717
B37: Unmetered Scattered Load | C37: 8.76 | D37: 0.0186 | E37: 9.77 | F37: 0.0207 | G37: 0.1152968037 | H37: 0.1129032258
